bitfinex/quotes_BTCUSD_20220105
["timestamp","ask_amount","ask_price","bid_price","bid_amount"]
[1641381707041,4.32990825,46578.0,46577.0,8.625e-05]
[1641381707285,4.68428925,46578.0,46577.0,8.625e-05]
[1641381707588,4.69228925,46578.0,46577.0,8.625e-05]
[1641381707784,0.00056141,46577.0,46576.0,0.00022]
[1641381707984,0.35494241,46577.0,46576.0,0.00022]
[1641381708984,0.35494241,46577.0,46576.0,0.31022]
[1641381709285,0.35494241,46577.0,46576.0,0.00022]
[1641381709484,0.36194241,46577.0,46576.0,0.00022]
[1641381711237,0.35494241,46577.0,46576.0,0.00022]
[1641381711436,0.36194241,46577.0,46576.0,0.00022]
[1641381711838,0.36194241,46577.0,46576.0,0.41022]
[1641381712240,0.36194241,46577.0,46576.0,0.00022]
[1641381712636,0.35494241,46577.0,46576.0,0.00022]
[1641381712846,0.00056141,46577.0,46576.0,1.65821999]
[1641381713038,0.00056141,46577.0,46576.0,2.43324999]
[1641381713237,0.00056141,46577.0,46576.0,2.78763099]
[1641381713438,0.00056141,46577.0,46576.0,2.16873099]
[1641381713639,0.00056141,46577.0,46576.0,1.71435]
[1641381714040,0.00056141,46577.0,46576.0,1.63912]
[1641381714887,0.00056141,46577.0,46576.0,1.03932]
[1641381715287,0.00056141,46577.0,46576.0,0.78932]
[1641381715490,0.00056141,46577.0,46576.0,0.81432]
[1641381715886,0.35494241,46577.0,46576.0,0.81432]
[1641381716687,0.35494241,46577.0,46576.0,0.64439883]
[1641381717488,0.36194241,46577.0,46576.0,0.64439883]
[1641381718190,0.361381,46577.0,46576.0,0.64439883]
[1641381719237,0.354381,46577.0,46576.0,0.64439883]
[1641381719436,0.361381,46577.0,46576.0,0.64439883]
[1641381720640,0.354381,46577.0,46576.0,0.84439883]
[1641381721542,0.355381,46577.0,46576.0,0.70239883]
[1641381722889,0.35502865,46577.0,46576.0,0.64439883]
[1641381723496,0.35602865,46577.0,46576.0,0.69939883]
[1641381724290,0.38224249,46577.0,46576.0,0.69939883]
[1641381724690,0.38224249,46577.0,46576.0,0.64439883]
[1641381724691,0.38124249,46577.0,46576.0,0.64439883]
[1641381725490,0.38324249,46577.0,46576.0,0.69839883]
[1641381726339,0.38324249,46577.0,46576.0,0.89839883]
[1641381726541,0.38324249,46577.0,46576.0,0.69839883]
[1641381726739,0.38124249,46577.0,46576.0,0.64439883]
[1641381727442,0.38424249,46577.0,46576.0,0.69639883]
[1641381728647,0.38124249,46577.0,46576.0,0.64439883]
[1641381729443,0.38524249,46577.0,46576.0,0.69439883]
[1641381730689,0.38124249,46577.0,46576.0,0.64439883]
[1641381731490,0.38524249,46577.0,46576.0,0.64439883]
[1641381732091,0.37364545,46577.0,46576.0,0.64439883]
[1641381732790,0.36964545,46577.0,46576.0,0.64439883]
[1641381733441,0.3677388,46577.0,46576.0,0.64439883]
[1641381734941,0.3667388,46577.0,46576.0,0.64439883]
[1641381735542,0.3697388,46577.0,46576.0,0.64439883]
[1641381736944,0.3667388,46577.0,46576.0,0.56149883]
[1641381737594,0.3697388,46577.0,46576.0,0.55149883]
[1641381738289,0.64290926,46577.0,46576.0,0.55149883]
[1641381738689,0.63990926,46577.0,46576.0,0.55149883]
[1641381739490,0.3747388,46577.0,46576.0,0.55149883]
[1641381740491,0.62835303,46577.0,46576.0,0.55149883]
[1641381741342,0.62035303,46577.0,46576.0,0.55149883]
[1641381741545,0.62935303,46577.0,46576.0,0.55149883]
[1641381742345,0.3757388,46577.0,46576.0,0.55149883]
[1641381743343,0.3667388,46577.0,46576.0,0.55149883]
[1641381743544,0.3827388,46577.0,46576.0,0.55149883]
[1641381744793,0.3667388,46577.0,46576.0,0.55149883]
[1641381745596,0.04686149,46577.0,46576.0,0.55749883]
[1641381746397,0.40124249,46577.0,46576.0,0.55749883]
[1641381746896,0.38124249,46577.0,46576.0,0.55149883]
[1641381747497,0.38424249,46577.0,46576.0,0.55449883]
[1641381748743,0.38124249,46577.0,46576.0,0.55149883]
[1641381749544,0.39924249,46577.0,46576.0,0.55149883]
[1641381750745,0.38124249,46577.0,46576.0,0.55149883]
[1641381751647,0.67573193,46577.0,46576.0,0.55149883]
[1641381751850,0.67495651,46577.0,46576.0,0.55149883]
[1641381752045,0.39624249,46577.0,46576.0,0.55149883]
[1641381752893,0.38124249,46577.0,46576.0,0.55149883]
[1641381753494,0.38124249,46577.0,46576.0,0.55072431]
[1641381753495,0.39524249,46577.0,46576.0,0.55072431]
[1641381753695,0.67252313,46577.0,46576.0,0.55072431]
[1641381753896,0.39524249,46577.0,46576.0,0.55072431]
[1641381754796,0.38124249,46577.0,46576.0,0.55072431]
[1641381755697,0.39424249,46577.0,46576.0,0.55072431]
[1641381756345,0.44793249,46577.0,46576.0,0.55072431]
[1641381756746,0.43493249,46577.0,46576.0,0.55072431]
[1641381756945,0.38124249,46577.0,46576.0,0.55072431]
[1641381757547,0.39424249,46577.0,46576.0,0.55072431]
[1641381758547,0.67080392,46577.0,46576.0,0.55072431]
[1641381758947,1.20580392,46577.0,46576.0,0.55072431]
[1641381759148,1.20580392,46577.0,46576.0,7.883e-05]
[1641381759348,1.59580392,46577.0,46576.0,7.883e-05]
[1641381759548,1.75680392,46577.0,46576.0,7.883e-05]
[1641381759801,1.48024249,46577.0,46576.0,7.883e-05]
[1641381760298,2.06353923,46577.0,46576.0,7.883e-05]
[1641381760698,1.48024249,46577.0,46576.0,7.883e-05]
[1641381760900,1.46924249,46577.0,46576.0,7.883e-05]
[1641381761698,1.48024249,46577.0,46576.0,7.883e-05]
[1641381762301,1.84024249,46577.0,46576.0,7.883e-05]
[1641381762899,1.46924249,46577.0,46576.0,7.883e-05]
[1641381763555,1.48024249,46577.0,46576.0,7.883e-05]
[1641381763956,2.18557509,46577.0,46576.0,7.883e-05]
[1641381764757,1.474619,46577.0,46576.0,7.883e-05]
[1641381765457,2.074619,46577.0,46576.0,7.883e-05]
[1641381765757,2.085619,46577.0,46576.0,7.883e-05]
[1641381766360,3.30067529,46577.0,46576.0,7.883e-05]
[1641381766757,2.70067529,46577.0,46576.0,7.883e-05]
[1641381766958,2.68967529,46577.0,46576.0,7.883e-05]
[1641381767599,2.70067529,46577.0,46576.0,7.883e-05]
[1641381768196,2.55067529,46577.0,46576.0,7.883e-05]
[1641381768796,2.53967529,46577.0,46576.0,7.883e-05]
[1641381769597,1.485619,46577.0,46576.0,7.883e-05]
[1641381769798,1.485619,46577.0,46544.0,0.107863]
[1641381769999,1.485619,46577.0,46556.0,0.30189482]
[1641381770000,0.26606444,46557.0,46556.0,0.30189482]
[1641381770211,0.26606444,46557.0,46553.0,0.30783027]
[1641381770398,0.26606444,46557.0,46553.0,0.00033]
[1641381770600,0.26606444,46557.0,46555.0,0.054039]
[1641381770797,0.26106444,46557.0,46555.0,0.039039]
[1641381771054,0.31106444,46557.0,46555.0,0.00011]
[1641381771253,0.31106444,46557.0,46552.0,0.18632]
[1641381771453,0.31106444,46557.0,46551.0,0.19087]
[1641381771651,0.31106444,46557.0,46551.0,0.00455]
[1641381771652,0.31806444,46557.0,46551.0,0.00455]
[1641381771855,0.59,46555.0,46550.0,0.48488]
[1641381772152,0.59,46555.0,46550.0,0.47488]
[1641381772153,0.354381,46554.0,46550.0,0.47488]
[1641381772350,0.27648048,46553.0,46550.0,0.47488]
[1641381772552,0.354381,46552.0,46550.0,0.47488]
[1641381772953,0.354381,46552.0,46551.0,0.05372]
[1641381773553,0.354381,46552.0,46550.0,0.47488]
[1641381773554,0.417102,46552.0,46550.0,0.47488]
[1641381773954,0.41830904,46552.0,46550.0,0.44988]
[1641381774798,0.36458804,46552.0,46550.0,0.44988]
[1641381774997,0.354381,46552.0,46550.0,0.44988]
[1641381775199,2.08453855,46561.0,46550.0,0.503595]
[1641381775402,0.5,46559.0,46550.0,0.44988]
[1641381775599,0.001,46552.0,46550.0,0.44988]
[1641381776298,0.001,46552.0,46550.0,0.55730102]
[1641381776898,0.30379334,46554.0,46550.0,0.55730102]
[1641381777099,0.38705426,46552.0,46550.0,0.503591]
[1641381777599,0.39405426,46552.0,46550.0,0.503591]
[1641381777800,0.00064779,46551.0,46550.0,0.503591]
[1641381779749,0.01564779,46551.0,46550.0,0.503591]
[1641381779948,0.42835058,46551.0,46550.0,0.503591]
[1641381780551,0.01564779,46551.0,46550.0,0.50368447]
[1641381780950,0.00064779,46551.0,46550.0,0.50368447]
[1641381781753,0.01364779,46551.0,46550.0,0.50368447]
[1641381782996,0.00064779,46551.0,46550.0,0.50368447]
[1641381783596,0.01464779,46551.0,46550.0,0.50368447]
[1641381784900,0.00064779,46551.0,46550.0,0.50368447]
[1641381785302,0.00064779,46551.0,46550.0,0.45368447]
[1641381785701,0.00664779,46551.0,46550.0,0.45368447]
[1641381786946,0.00064779,46551.0,46550.0,0.45368447]
[1641381787746,0.01364779,46551.0,46550.0,0.45368447]
[1641381788748,0.01364779,46551.0,46550.0,0.45959207]
[1641381789548,0.00064779,46551.0,46550.0,0.45959207]
[1641381789798,0.01264779,46551.0,46550.0,0.45959207]
[1641381790799,0.86702879,46551.0,46550.0,0.45959207]
[1641381791000,0.85502879,46551.0,46550.0,0.45959207]
[1641381791599,1.01802879,46551.0,46550.0,0.45959207]
[1641381791799,0.86802879,46551.0,46550.0,0.45959207]
[1641381793004,1.16434269,46551.0,46550.0,0.45959207]
[1641381793203,1.36234269,46551.0,46550.0,0.45588107]
[1641381793450,1.06730879,46551.0,46550.0,0.45588107]
[1641381793650,1.06730879,46551.0,46550.0,0.45577107]
[1641381793651,2.69862269,46551.0,46550.0,0.45577107]
[1641381794053,3.59589012,46551.0,46550.0,0.45577107]
[1641381794450,2.70547085,46551.0,46550.0,0.45577107]
[1641381794651,2.20901837,46551.0,46550.0,0.45577107]
[1641381794852,2.19701837,46551.0,46550.0,0.45577107]
[1641381795050,1.38347085,46551.0,46550.0,0.45577107]
[1641381795251,2.59937871,46551.0,46550.0,0.45577107]
[1641381795657,2.61237871,46551.0,46550.0,0.45577107]
[1641381795856,4.69415861,46551.0,46550.0,0.00611107]
[1641381796055,1.43942704,46549.0,46547.0,0.00042071]
[1641381796253,3.22594799,46548.0,46547.0,0.00031071]
[1641381796654,3.32594799,46548.0,46547.0,0.00031071]
[1641381797056,2.71955585,46548.0,46547.0,0.00031071]
[1641381797301,2.61955585,46548.0,46547.0,0.00031071]
[1641381797701,2.63155585,46548.0,46547.0,0.00031071]
[1641381797902,2.14564799,46548.0,46547.0,0.00031071]
[1641381798301,3.36160086,46548.0,46547.0,0.00031071]
[1641381798503,3.46160086,46548.0,46547.0,0.00031071]
[1641381798702,3.56160086,46548.0,46547.0,0.00031071]
[1641381799106,3.54960086,46548.0,46547.0,0.00031071]
[1641381799704,3.56060086,46548.0,46547.0,0.00031071]
[1641381800706,2.83060086,46548.0,46547.0,0.00031071]
[1641381800948,2.72224863,46548.0,46547.0,0.00031071]
[1641381801146,2.77224863,46548.0,46547.0,0.00031071]
[1641381801654,2.77224863,46548.0,46545.0,0.00044]
[1641381801655,1.36501701,46547.0,46545.0,0.00033071]
[1641381801850,0.902381,46546.0,46545.0,0.00033071]
[1641381802049,0.902381,46546.0,46541.0,0.00433]
[1641381802247,0.28715337,46543.0,46541.0,0.00087071]
[1641381802451,0.354381,46542.0,46541.0,0.00087071]
[1641381802848,0.854381,46542.0,46541.0,1.15087071]
[1641381803055,0.854381,46542.0,46541.0,1.80617235]
[1641381803056,0.1457,46542.0,46541.0,1.80617235]
[1641381803251,0.57851986,46546.0,46541.0,2.21055335]
[1641381803550,0.6948716,46548.0,46541.0,2.21055335]
[1641381803551,0.00064777,46548.0,46544.0,0.2]
[1641381803750,0.017,46546.0,46545.0,0.10171468]
[1641381803949,0.017,46546.0,46545.0,0.92609568]
[1641381804152,0.017,46546.0,46545.0,0.10171468]
[1641381804350,0.017,46546.0,46545.0,0.15543068]
[1641381804699,0.017,46546.0,46545.0,0.35543068]
[1641381804896,0.00064777,46548.0,46545.0,0.35543068]
[1641381805096,0.00064777,46548.0,46545.0,0.46285634]
[1641381805298,0.00064777,46548.0,46546.0,0.35836701]
[1641381805495,0.00064777,46548.0,46547.0,0.048]
[1641381805696,0.01064777,46548.0,46547.0,0.048]
[1641381806899,0.00064777,46548.0,46547.0,0.048]
[1641381807796,0.00264777,46548.0,46547.0,0.054]
[1641381808646,0.002,46548.0,46547.0,0.054]
[1641381808946,0.007013,46551.0,46547.0,0.04735224]
[1641381809146,0.007013,46551.0,46548.0,0.10743325]
[1641381809351,0.007013,46551.0,46549.0,0.048]
[1641381809751,0.354381,46550.0,46549.0,0.048]
[1641381811752,0.382381,46550.0,46549.0,0.052]
[1641381811955,0.028,46550.0,46549.0,0.252]
[1641381812798,0.028,46550.0,46549.0,0.25208623]
[1641381812999,0.007013,46551.0,46549.0,0.24808623]
[1641381813800,0.032013,46551.0,46549.0,0.05308623]
[1641381814000,0.032013,46551.0,46549.0,0.00508623]
[1641381815001,0.007013,46551.0,46549.0,8.623e-05]
[1641381815601,0.354381,46550.0,46549.0,8.623e-05]
[1641381815800,0.029013,46551.0,46549.0,8.623e-05]
[1641381816657,0.354381,46550.0,46549.0,8.623e-05]
[1641381817751,0.853381,46550.0,46549.0,8.623e-05]
[1641381817950,0.403381,46550.0,46549.0,8.623e-05]
[1641381818151,0.393381,46550.0,46549.0,8.623e-05]
[1641381818552,0.447104,46550.0,46549.0,8.623e-05]
[1641381818952,0.398104,46550.0,46549.0,8.623e-05]
[1641381819451,0.344381,46550.0,46549.0,8.623e-05]
[1641381819712,0.358381,46550.0,46549.0,8.623e-05]
[1641381821010,0.344381,46550.0,46549.0,8.623e-05]
[1641381821709,0.358381,46550.0,46549.0,8.623e-05]
[1641381822909,0.358381,46550.0,46549.0,0.24808623]
[1641381823109,0.007013,46551.0,46549.0,0.24808623]
[1641381823308,0.007013,46551.0,46549.0,0.30179981]
[1641381823749,0.026013,46551.0,46549.0,0.30379981]
[1641381823948,0.026013,46551.0,46549.0,0.26339981]
[1641381825850,0.058013,46551.0,46549.0,0.26639981]
[1641381826052,0.039013,46551.0,46549.0,0.26439981]
[1641381826651,0.039013,46551.0,46550.0,1.521]
[1641381826851,0.039013,46551.0,46550.0,0.638]
[1641381827051,0.007013,46551.0,46550.0,0.638]
[1641381827703,0.007013,46551.0,46550.0,0.644]
[1641381827903,0.038013,46551.0,46550.0,0.694]
[1641381829103,0.007013,46551.0,46550.0,0.688]
[1641381829303,0.007013,46551.0,46550.0,1.819]
[1641381830003,0.034013,46551.0,46550.0,1.827]
[1641381830604,0.034013,46551.0,46550.0,1.8267]
[1641381830803,0.034013,46551.0,46550.0,1.8264]
[1641381831048,0.007013,46551.0,46550.0,1.8181]
[1641381831645,0.007013,46551.0,46550.0,2.172592]
[1641381831846,0.007013,46551.0,46550.0,2.181592]
[1641381832246,0.01233431,46561.0,46555.0,0.053706]
[1641381832450,0.01233431,46561.0,46558.0,0.30741328]
[1641381832647,0.01233431,46561.0,46559.0,0.048]
[1641381833648,0.01233431,46561.0,46559.0,0.10170684]
[1641381833847,0.01233431,46561.0,46560.0,7.7e-05]
[1641381834246,0.00125282,46562.0,46560.0,7.7e-05]
[1641381834696,1.78910954,46562.0,46560.0,7.7e-05]
[1641381834896,0.354492,46561.0,46560.0,7.7e-05]
[1641381836198,0.354492,46561.0,46560.0,0.248077]
[1641381836398,0.57851986,46563.0,46560.0,0.55960308]
[1641381836598,0.57851986,46563.0,46561.0,0.10739996]
[1641381836797,0.01234144,46566.0,46562.0,0.048]
[1641381836798,0.57851986,46564.0,46562.0,0.048]
[1641381837199,0.31152608,46565.0,46561.0,0.05369996]
[1641381837200,1.27368334,46563.0,46561.0,0.05369996]
[1641381837399,0.66601808,46562.0,46551.0,0.84889877]
[1641381837598,0.00123573,46561.0,46551.0,0.84889877]
[1641381837799,0.00123573,46561.0,46555.0,0.053718]
[1641381838451,1.70253917,46559.0,46555.0,0.053718]
[1641381838651,0.354492,46558.0,46555.0,0.053718]
[1641381839051,1.70253917,46559.0,46555.0,0.053718]
[1641381839052,0.354492,46556.0,46555.0,0.053718]
[1641381839554,0.354492,46556.0,46548.0,0.107447]
[1641381839555,0.25612158,46555.0,46548.0,0.107447]
[1641381839754,0.04928817,46554.0,46541.0,0.86976948]
[1641381839954,0.32137528,46545.0,46541.0,0.86976948]
[1641381840155,0.24754264,46543.0,46541.0,0.86976948]
[1641381840356,0.28138382,46542.0,46541.0,0.02087071]
[1641381840762,0.24754264,46543.0,46541.0,0.02087071]
[1641381840955,0.28884403,46542.0,46541.0,0.02087071]
[1641381841153,0.28741974,46542.0,46541.0,0.02087071]
[1641381841353,0.28128372,46542.0,46541.0,0.02087071]
[1641381841555,0.60003927,46542.0,46541.0,0.02087071]
[1641381841752,0.31417259,46542.0,46541.0,0.02087071]
[1641381841953,0.32417259,46542.0,46541.0,0.02087071]
[1641381842200,0.60679288,46542.0,46541.0,0.02087071]
[1641381842400,0.32417259,46542.0,46541.0,0.02087071]
[1641381842600,0.01,46542.0,46541.0,0.02087071]
[1641381843201,0.24754264,46543.0,46541.0,0.02087071]
[1641381843800,0.013,46543.0,46541.0,0.02087071]
[1641381844002,0.013,46543.0,46542.0,0.83]
[1641381844400,0.013,46543.0,46542.0,0.25]
[1641381844600,0.013,46543.0,46542.0,0.245]
[1641381844800,0.013,46543.0,46542.0,0.04508468]
[1641381845002,0.013,46543.0,46542.0,8.468e-05]
[1641381845947,0.041,46543.0,46542.0,8.468e-05]
[1641381847249,0.25322451,46547.0,46542.0,8.468e-05]
[1641381847448,0.25322451,46547.0,46544.0,0.10744988]
[1641381847849,0.02,46547.0,46544.0,0.10744988]
[1641381848251,0.02,46547.0,46545.0,0.05]
[1641381848454,0.02,46547.0,46545.0,0.10371794]
[1641381849052,0.24673661,46554.0,46545.0,0.10371794]
[1641381849253,0.354492,46553.0,46545.0,0.10371794]
[1641381849453,0.354492,46553.0,46548.0,0.10744]
[1641381849903,0.401492,46553.0,46548.0,0.10744]
[1641381850305,0.401492,46553.0,46550.0,0.10742973]
[1641381850605,0.401492,46553.0,46551.0,0.053714]
[1641381851205,0.31039595,46556.0,46550.0,0.10742973]
[1641381851505,0.64029542,46556.0,46554.0,0.053715]
[1641381851704,0.354492,46555.0,46554.0,0.053715]
[1641381852406,0.354363,46555.0,46554.0,0.053715]
[1641381852805,2.44784289,46555.0,46554.0,0.053715]
[1641381853007,2.44784289,46555.0,46554.0,0.1074285]
[1641381853648,0.354363,46555.0,46554.0,0.1074285]
[1641381853847,0.57851986,46558.0,46554.0,0.053715]
[1641381854046,0.354471,46557.0,46554.0,0.053715]
[1641381854245,0.354471,46557.0,46555.0,0.0537101]
[1641381854848,0.354471,46557.0,46556.0,1.13]
[1641381855045,0.57851986,46561.0,46556.0,0.25]
[1641381855246,0.57851986,46561.0,46558.0,0.3074046]
[1641381855546,0.57851986,46565.0,46558.0,0.3574046]
[1641381855745,0.24595541,46564.0,46558.0,0.303703]
[1641381855944,0.24595541,46564.0,46558.0,0.306703]
[1641381856149,0.24595541,46564.0,46560.0,0.053703]
[1641381856347,2.04768571,46563.0,46560.0,0.053703]
[1641381856547,0.344471,46563.0,46560.0,0.107406]
[1641381856746,0.24595541,46564.0,46560.0,0.107406]
[1641381856946,0.24595541,46564.0,46561.0,0.05370214]
[1641381857399,0.354442,46563.0,46561.0,0.05370214]
[1641381858605,0.354442,46563.0,46560.0,0.053703]
[1641381858807,0.404442,46563.0,46560.0,0.053703]
[1641381859007,0.68424169,46563.0,46560.0,0.053703]
[1641381859206,0.68931529,46563.0,46560.0,0.053703]
[1641381859512,0.354442,46561.0,46558.0,0.053716]
[1641381859706,0.354442,46559.0,46558.0,0.053716]
[1641381859906,0.045424,46559.0,46558.0,0.053716]
[1641381863347,0.00120195,46562.0,46558.0,0.053716]
[1641381863646,0.00120195,46562.0,46559.0,0.107419]
[1641381863647,0.354442,46561.0,46559.0,0.107419]
[1641381865298,0.354442,46560.0,46559.0,0.107419]
[1641381866199,0.354442,46560.0,46559.0,0.10748942]
[1641381866797,0.63114025,46560.0,46559.0,0.10748942]
[1641381867198,0.97114025,46560.0,46559.0,0.10748942]
[1641381867399,0.63114025,46560.0,46559.0,0.10748942]
[1641381867598,0.354442,46560.0,46559.0,0.10748942]
[1641381868948,0.354442,46560.0,46559.0,7.042e-05]
[1641381870849,0.57851986,46563.0,46559.0,0.20007042]
[1641381871047,0.57851986,46563.0,46561.0,0.2]
[1641381871247,0.57851986,46563.0,46559.0,0.04307042]
[1641381871248,0.57851986,46563.0,46562.0,1.64979092]
[1641381871452,0.57851986,46563.0,46562.0,1.907442]
[1641381871647,0.01234877,46564.0,46562.0,2.057442]
[1641381871849,0.01234877,46564.0,46563.0,1.864442]
[1641381872048,0.26472983,46567.0,46565.0,0.30737569]
[1641381872302,0.80999932,46570.0,46566.0,0.651129]
[1641381872505,0.02621384,46577.0,46568.0,0.2]
[1641381872703,0.02621384,46577.0,46571.0,1.131]
[1641381872905,0.02621384,46577.0,46575.0,0.2]
[1641381873106,0.02621384,46577.0,46576.0,1.413]
[1641381873304,0.02621384,46577.0,46576.0,2.544]
[1641381873706,3.02611384,46578.0,46577.0,2.641]
[1641381873906,3.02611384,46578.0,46577.0,3.088442]
[1641381874107,3.02611384,46578.0,46577.0,0.747442]
[1641381874306,3.02611384,46578.0,46577.0,0.393]
[1641381874509,3.02611384,46578.0,46577.0,0.446675]
[1641381875107,3.02611384,46578.0,46577.0,0.243]
[1641381875306,3.38055584,46578.0,46577.0,0.243]
[1641381875507,3.38055584,46578.0,46577.0,0.043]
[1641381875954,3.42355584,46578.0,46577.0,0.003]
[1641381877052,3.62355584,46578.0,46577.0,0.003]
[1641381877253,4.39593167,46578.0,46561.0,0.053704]
[1641381877452,0.00122437,46571.0,46566.0,0.107399]
[1641381877651,0.00122437,46571.0,46563.0,0.05370302]
[1641381877652,0.29827089,46567.0,46563.0,0.05370302]
[1641381877853,0.74867483,46567.0,46564.0,0.053705]
[1641381878054,0.64086663,46566.0,46557.0,0.2]
[1641381878254,0.31448546,46561.0,46558.0,0.053707]
[1641381878654,0.31448546,46561.0,46560.0,0.107413]
[1641381879896,0.31448546,46561.0,46560.0,0.20111874]
[1641381880096,0.32248546,46561.0,46560.0,0.20111874]
[1641381881096,0.32248546,46561.0,46560.0,0.16111874]
[1641381881299,0.32248546,46561.0,46559.0,0.053705]
[1641381881300,0.60951868,46561.0,46559.0,0.053705]
[1641381881498,0.33934106,46560.0,46555.0,0.84889877]
[1641381881697,0.33934106,46560.0,46556.0,0.053716]
[1641381881902,0.05,46559.0,46556.0,0.90261477]
[1641381882097,0.05,46559.0,46556.0,0.84889877]
[1641381882299,0.05,46559.0,46551.0,0.02]
[1641381882300,0.04428259,46558.0,46551.0,0.02]
[1641381882501,0.00125099,46552.0,46551.0,0.02]
[1641381882699,1.10375953,46552.0,46551.0,0.02]
[1641381882897,1.45820153,46552.0,46551.0,0.02]
[1641381883298,1.05081136,46552.0,46551.0,0.02]
[1641381884151,0.66920153,46552.0,46551.0,0.02]
[1641381884451,0.66795054,46552.0,46551.0,0.02]
[1641381885048,0.365442,46552.0,46551.0,0.02]
[1641381885247,0.354442,46552.0,46551.0,0.02]
[1641381885949,0.375442,46552.0,46551.0,0.02]
[1641381886849,0.021,46552.0,46551.0,0.02]
[1641381887295,0.28370973,46556.0,46552.0,0.10743]
[1641381887601,0.354442,46555.0,46552.0,0.107427]
[1641381888399,0.354442,46555.0,46553.0,0.053712]
[1641381889200,0.28143568,46554.0,46552.0,0.053715]
[1641381889398,0.354442,46553.0,46552.0,0.053715]
[1641381889602,0.7779382,46553.0,46551.0,0.12750613]
[1641381889997,0.7919382,46553.0,46551.0,0.12750613]
[1641381891252,0.7779382,46553.0,46551.0,0.12750613]
[1641381891455,0.28968144,46552.0,46551.0,0.12750613]
[1641381891652,0.92206036,46552.0,46551.0,0.12750613]
[1641381891853,0.354442,46552.0,46551.0,0.12750613]
[1641381892051,0.368442,46552.0,46551.0,0.12750613]
[1641381892451,0.92228134,46552.0,46551.0,0.12750613]
[1641381892852,0.92315936,46552.0,46551.0,0.12750613]
[1641381893051,0.93207478,46552.0,46551.0,0.12750613]
[1641381893251,0.9123097,46552.0,46551.0,0.12750613]
[1641381893452,0.62450383,46552.0,46551.0,0.12750613]
[1641381893653,0.9108993,46552.0,46551.0,0.12750613]
[1641381894052,0.9218993,46552.0,46551.0,0.12750613]
[1641381894254,0.91636868,46552.0,46551.0,0.12750613]
[1641381894453,0.63550383,46552.0,46551.0,0.12750613]
[1641381895096,0.365442,46552.0,46551.0,0.12750613]
[1641381895298,0.354442,46552.0,46551.0,0.12750613]
[1641381896096,0.367442,46552.0,46551.0,0.12750613]
[1641381897298,0.05,46553.0,46551.0,0.12750613]
[1641381897501,0.33370973,46556.0,46551.0,0.12750613]
[1641381897702,0.28370973,46556.0,46551.0,0.12750613]
[1641381897899,0.28370973,46556.0,46553.0,0.053716]
[1641381898101,0.354442,46555.0,46554.0,0.053717]
[1641381898550,0.66695795,46555.0,46554.0,0.053717]
[1641381898747,0.66695795,46555.0,46551.0,0.02007713]
[1641381899146,0.66695795,46555.0,46552.0,0.053721]
[1641381899347,0.65648996,46553.0,46552.0,0.053721]
[1641381899547,0.64867222,46553.0,46552.0,0.053721]
[1641381899949,0.65967222,46553.0,46551.0,0.02007713]
[1641381900152,0.66345376,46552.0,46551.0,0.02007713]
[1641381900950,0.354442,46552.0,46551.0,0.02007713]
[1641381901149,0.59545092,46553.0,46551.0,0.02007713]
[1641381901351,0.354442,46552.0,46551.0,0.12750813]
[1641381901853,0.58445092,46553.0,46551.0,0.32750813]
[1641381902050,0.02,46552.0,46551.0,0.32750813]
[1641381902902,0.02,46552.0,46551.0,0.12750813]
[1641381903300,0.354442,46552.0,46551.0,0.12750813]
[1641381904102,0.365442,46552.0,46551.0,0.12750813]
[1641381904502,0.011,46552.0,46551.0,0.12750813]
[1641381905307,0.28370973,46556.0,46551.0,0.38122076]
[1641381905504,0.354442,46555.0,46553.0,0.053713]
[1641381905950,0.369442,46555.0,46553.0,0.053713]
[1641381907252,0.354442,46555.0,46553.0,0.053713]
[1641381908051,0.369442,46555.0,46553.0,0.053713]
[1641381908253,0.369442,46555.0,46554.0,7.503e-05]
[1641381909353,0.354442,46555.0,46554.0,7.503e-05]
[1641381909996,0.368442,46555.0,46554.0,7.503e-05]
[1641381910401,0.014,46555.0,46554.0,7.503e-05]
[1641381911200,2.34278471,46556.0,46554.0,7.503e-05]
[1641381911401,0.354442,46555.0,46554.0,7.503e-05]
[1641381911599,0.58445092,46558.0,46554.0,7.503e-05]
[1641381911798,0.354442,46557.0,46554.0,0.05378503]
[1641381912003,0.014,46555.0,46554.0,0.05378503]
[1641381913449,0.24758771,46559.0,46554.0,0.05378503]
[1641381913648,0.24758771,46559.0,46554.0,0.10749703]
[1641381913649,0.354442,46558.0,46554.0,0.10749703]
[1641381913847,0.354442,46558.0,46555.0,0.053711]
[1641381914049,0.354442,46558.0,46556.0,0.05370839]
[1641381914450,0.012,46559.0,46556.0,0.05370839]
[1641381914650,0.354442,46558.0,46556.0,0.05370839]
[1641381914851,0.012,46559.0,46556.0,0.10741839]
[1641381915151,0.012,46559.0,46556.0,0.16112239]
[1641381915349,0.28181628,46563.0,46558.0,0.107407]
[1641381915557,0.28181628,46563.0,46559.0,0.0537032]
[1641381915850,0.354442,46562.0,46559.0,0.0537032]
[1641381916453,0.054,46563.0,46560.0,0.253704]
[1641381917299,0.58445092,46568.0,46560.0,0.361104]
[1641381917500,0.58445092,46568.0,46561.0,0.2]
[1641381917700,0.58445092,46568.0,46563.0,0.1074]
[1641381917900,0.354442,46567.0,46563.0,0.16110026]
[1641381918699,0.354442,46567.0,46564.0,0.0537]
[1641381918899,0.354442,46567.0,46564.0,0.10746581]
[1641381919499,0.32283157,46568.0,46564.0,0.10746581]
[1641381920100,0.33583157,46568.0,46564.0,0.10746581]
[1641381921152,0.27861339,46568.0,46564.0,0.10746581]
[1641381921950,0.26561339,46568.0,46564.0,0.10746581]
[1641381922151,0.354442,46567.0,46560.0,0.053704]
[1641381922352,0.27861339,46568.0,46560.0,0.053704]
[1641381922950,0.27861339,46568.0,46563.0,0.107399]
[1641381923150,0.354442,46567.0,46563.0,0.107399]
[1641381924052,0.369442,46567.0,46564.0,0.10739686]
[1641381924450,0.369442,46567.0,46564.0,0.0537]
[1641381925403,0.354442,46567.0,46564.0,0.0537]
[1641381925604,0.354442,46567.0,46564.0,0.10739824]
[1641381926007,0.354442,46567.0,46564.0,0.16109824]
[1641381926202,0.368442,46567.0,46564.0,0.16109824]
[1641381926804,0.135,46565.0,46564.0,0.16109824]
[1641381927006,0.135,46565.0,46564.0,0.10739824]
[1641381927205,0.135,46565.0,46564.0,0.0537]
[1641381928205,0.15,46565.0,46564.0,0.0537]
[1641381929160,0.46236202,46565.0,46563.0,0.107399]
[1641381929358,0.354442,46564.0,46562.0,0.053698]
[1641381930056,0.365442,46564.0,46562.0,0.053698]